bitfinex/quotes_ETHUSD_20240713
["timestamp","ask_amount","ask_price","bid_price","bid_amount"]
[1720910243202,2.3024,3159.2,3159.1,7.42]
[1720910243402,4.60817046,3159.2,3159.1,7.42]
[1720910243591,2.46777409,3159.2,3159.1,7.42]
[1720910243794,5.19146545,3159.2,3159.1,7.42]
[1720910243992,2.3024,3159.2,3159.1,7.42]
[1720910244291,4.6093378,3159.2,3159.1,7.42]
[1720910244490,2.3024,3159.2,3159.1,7.42]
[1720910246894,3.39947473,3159.2,3159.1,7.42]
[1720910247802,6.29182816,3159.2,3159.1,7.42]
[1720910247994,3.56484526,3159.2,3158.3,7.42]
[1720910248189,1.97938793,3158.4,3158.3,7.42]
[1720910248390,3.07646266,3158.4,3158.3,7.42]
[1720910248838,1.09707473,3158.4,3158.3,7.42]
[1720910250811,1.64941118,3158.4,3158.3,7.42]
[1720910251010,2.74648591,3158.4,3158.3,7.42]
[1720910252258,2.74675023,3158.4,3158.3,7.42]
[1720910252762,1.09707039,3158.4,3158.3,7.42]
[1720910254160,3.07689919,3158.4,3158.3,7.42]
[1720910254662,1.09707039,3158.4,3158.3,7.42]
[1720910255245,1.09706367,3158.4,3158.3,7.42]
[1720910255434,1.09706333,3158.4,3158.3,7.42]
[1720910255761,1.09706333,3158.4,3158.3,8.39377]
[1720910257461,1.09706333,3158.4,3158.3,14.16015]
[1720910257676,1.09706333,3158.4,3158.3,11.61671598]
[1720910258035,2.08742139,3158.4,3158.3,11.61671598]
[1720910258457,0.99035806,3158.5,3158.4,2.21631]
[1720910258764,1.09682537,3158.5,3158.4,8.8729746]
[1720910259137,2.74695516,3158.5,3158.4,8.8729746]
[1720910259341,1.09682537,3158.5,3158.4,8.8729746]
[1720910259762,2.74695516,3158.5,3158.4,6.6566646]
[1720910260189,2.74695516,3158.5,3158.4,8.8729746]
[1720910260478,1.09682537,3158.5,3158.4,8.8729746]
[1720910260645,2.74695516,3158.5,3158.4,8.8729746]
[1720910261949,1.09690935,3158.5,3158.4,8.8729746]
[1720910262151,2.7469036,3158.5,3158.4,6.6566646]
[1720910262461,1.09691281,3158.5,3158.4,8.8729746]
[1720910263180,2.41692383,3158.5,3158.4,8.8729746]
[1720910264181,1.09691281,3158.5,3158.4,8.8729746]
[1720910265294,3.84372713,3158.5,3158.4,8.8729746]
[1720910265469,3.51377029,3158.5,3158.4,8.8729746]
[1720910265873,2.41687336,3158.5,3158.4,8.8729746]
[1720910267397,1.09691903,3158.5,3158.4,8.8729746]
[1720910267761,2.08685493,3158.5,3158.4,8.8729746]
[1720910268292,1.09691903,3158.5,3158.4,8.8729746]
[1720910268501,1.6498614,3158.7,3158.5,2.21624]
[1720910268813,1.97983368,3158.9,3158.6,0.55]
[1720910269119,1.09689042,3158.8,3158.6,3.55]
[1720910269398,1.09689042,3158.7,3158.6,3.55]
[1720910270367,2.74678145,3158.7,3158.6,3.55]
[1720910271500,1.09689042,3158.7,3158.6,3.55]
[1720910271698,3.29060346,3159.8,3158.6,3.55]
[1720910271869,1.97997858,3158.9,3158.6,3.55]
[1720910272064,3.29060346,3159.8,3158.6,3.55]
[1720910272269,1.09689602,3158.8,3158.6,3.55]
[1720910272497,1.09689602,3158.7,3158.6,3.55]
[1720910273413,2.74691864,3158.7,3158.6,3.55]
[1720910273569,2.74691864,3158.7,3158.6,4.321124]
[1720910274505,2.41692874,3158.7,3158.6,4.321124]
[1720910274662,2.41692874,3158.7,3158.6,6.537294]
[1720910275002,2.41684425,3158.7,3158.6,6.537294]
[1720910275200,1.09679321,3158.7,3158.6,6.537294]
[1720910275499,2.74685701,3158.7,3158.6,4.321124]
[1720910276000,1.09679321,3158.7,3158.6,4.321124]
[1720910276705,1.09679321,3158.7,3158.6,3.275]
[1720910276887,1.09679321,3158.7,3158.6,0.275]
[1720910277206,2.4063,3159.7,3158.6,0.275]
[1720910278270,1.64999929,3158.7,3158.6,0.275]
[1720910278466,2.74687778,3158.7,3158.6,0.275]
[1720910278699,1.09687849,3158.7,3158.6,0.275]
[1720910278901,2.74691717,3158.7,3158.6,0.275]
[1720910279309,1.09687849,3158.7,3158.6,0.275]
[1720910279499,1.09688171,3158.7,3158.6,0.275]
[1720910279821,2.4063,3159.7,3158.6,0.275]
[1720910279822,1.98003617,3158.9,3158.6,0.275]
[1720910280022,1.09688186,3158.8,3158.6,0.275]
[1720910280574,1.09688186,3158.8,3158.6,2.49114]
[1720910280799,1.65051938,3158.7,3158.6,6.456373]
[1720910281007,1.09688186,3158.7,3158.6,4.240233]
[1720910281303,1.09688186,3158.7,3158.6,0.275]
[1720910282012,3.29060346,3159.8,3158.6,0.275]
[1720910282302,1.9805905,3158.9,3158.6,0.275]
[1720910282478,1.09688886,3158.8,3158.6,0.275]
[1720910282681,1.9805905,3158.9,3158.7,0.81]
[1720910282883,1.0968882,3158.8,3158.7,0.81]
[1720910283074,1.0968882,3158.8,3158.7,1.36]
[1720910283299,2.41739798,3158.8,3158.7,9.711415]
[1720910283607,1.32050978,3159.1,3158.7,12.86410098]
[1720910283810,0.9904889,3159.3,3159.0,0.81]
[1720910284015,0.9904889,3159.3,3159.2,7.6917]
[1720910284188,1.32050978,3159.6,3159.3,2.4502]
[1720910284379,1.32050978,3159.7,3159.6,2.21547]
[1720910284675,1.32050978,3159.8,3159.7,2.2154]
[1720910284878,1.32050978,3159.8,3159.7,2.7654]
[1720910285109,1.32050978,3159.8,3159.7,8.973094]
[1720910285281,1.5,3161.9,3159.8,2.2153]
[1720910285480,1.98019935,3160.2,3159.9,0.55]
[1720910285907,1.97912199,3160.2,3159.8,0.55]
[1720910286202,1.97912199,3160.2,3159.7,3.0]
[1720910286203,1.64924561,3159.9,3159.7,3.0]
[1720910286405,1.64852012,3159.9,3159.6,1.942]
[1720910286607,1.3188269,3159.7,3159.6,1.942]
[1720910286907,1.3188269,3159.8,3159.6,5.492]
[1720910287123,1.3188269,3159.7,3159.6,5.492]
[1720910287306,1.64852012,3159.8,3159.6,2.492]
[1720910287915,1.64852012,3159.7,3159.6,2.492]
[1720910288313,1.64852012,3159.8,3159.6,2.492]
[1720910288512,1.64762982,3159.8,3159.6,2.492]
[1720910289206,1.31809162,3159.7,3159.6,2.492]
[1720910289429,1.31809162,3159.8,3159.6,2.492]
[1720910289579,1.31809162,3159.7,3159.6,2.492]
[1720910290622,1.31809162,3159.9,3159.6,3.262758]
[1720910290827,1.31809162,3159.9,3159.7,3.0]
[1720910291182,1.31809162,3160.0,3159.6,5.492]
[1720910291522,1.31809162,3160.0,3159.7,2.76534]
[1720910292418,1.31809162,3160.0,3159.7,0.55]
[1720910292574,1.31809162,3159.9,3159.6,4.15746]
[1720910292779,1.31809162,3160.0,3159.7,3.55]
[1720910293217,0.98792027,3159.9,3159.7,3.55]
[1720910293736,0.98792027,3160.1,3159.9,2.21525]
[1720910293895,0.98792027,3160.1,3160.0,0.55]
[1720910294231,1.31809162,3160.2,3160.0,0.55]
[1720910294407,2.08429,3160.1,3160.0,3.55]
[1720910294607,2.08429,3160.1,3160.0,4.671544]
[1720910295013,1.09644202,3160.1,3160.0,4.671544]
[1720910295213,1.09640221,3160.1,3160.0,4.671544]
[1720910295387,0.9877776,3160.2,3160.0,6.886724]
[1720910295584,0.9877776,3160.4,3160.0,6.886724]
[1720910295899,0.9877776,3160.4,3160.1,3.1253064]
[1720910296100,0.9877776,3160.5,3160.2,0.55]
[1720910296599,2.08406422,3160.4,3160.2,3.55]
[1720910296787,0.9877776,3160.4,3160.2,3.55]
[1720910297386,0.9877776,3160.5,3160.2,3.55]
[1720910297623,0.9877776,3160.5,3160.2,4.21753064]
[1720910298307,0.9877776,3160.6,3160.2,4.21753064]
[1720910298519,1.3170368,3160.7,3160.2,4.21753064]
[1720910298520,2.08406828,3160.5,3160.2,4.21753064]
[1720910298682,0.9877776,3160.5,3160.2,4.21753064]
[1720910299105,0.9877776,3160.5,3160.2,3.55]
[1720910299525,0.9877776,3160.5,3160.2,5.76504]
[1720910299934,0.9877776,3160.6,3160.2,5.76504]
[1720910300225,0.9877776,3160.7,3160.5,2.21483]
[1720910300542,0.9877776,3160.8,3160.6,0.771483]
[1720910300742,1.09623695,3160.7,3160.6,0.55]
[1720910301290,0.9877776,3160.8,3160.6,0.55]
[1720910303230,0.9877776,3160.9,3160.6,0.55]
[1720910303439,1.09623961,3160.8,3160.4,3.0]
[1720910303597,2.08401721,3160.7,3160.3,1.942]
[1720910303798,1.09623961,3160.6,3160.3,1.942]
[1720910304846,0.9877776,3160.5,3159.9,4.942]
[1720910305009,2.3202,3160.8,3159.9,1.942]
[1720910305199,0.98628189,3160.3,3159.9,1.942]
[1720910305393,1.09644251,3160.2,3159.9,1.942]
[1720910305857,1.09644251,3160.2,3159.5,1.942]
[1720910306147,0.98628189,3160.1,3159.5,1.942]
[1720910306328,1.09644251,3160.0,3159.5,2.36847]
[1720910306535,1.09644251,3160.0,3159.6,2.3227]
[1720910306697,0.98628189,3160.6,3160.0,4.53786]
[1720910306902,1.09631909,3160.5,3160.3,1.942]
[1720910307233,1.09631909,3160.5,3160.0,2.3227]
[1720910307234,1.09631909,3160.4,3160.0,2.3227]
[1720910307441,1.09631909,3160.4,3160.1,3.55]
[1720910307635,2.08260098,3160.5,3160.2,3.0]
[1720910307839,1.09631909,3160.4,3160.2,3.0]
[1720910308026,1.97256378,3161.1,3159.9,1.942]
[1720910308027,3.29060346,3161.9,3159.9,7.15724]
[1720910308259,3.0,3162.0,3160.0,0.55]
[1720910308260,0.98645742,3160.5,3160.0,0.55]
[1720910308580,1.09635112,3160.4,3160.0,0.55]
[1720910308727,1.09635112,3160.3,3160.0,2.76517]
[1720910308933,0.98645742,3160.6,3160.2,2.3227]
[1720910309131,1.09632837,3160.5,3160.1,3.0]
[1720910309433,1.09632837,3160.4,3160.1,3.0]
[1720910309628,1.09632837,3160.3,3160.0,3.55]
[1720910309930,1.09632837,3160.2,3160.0,3.55]
[1720910310144,1.09632837,3160.4,3160.0,3.55]
[1720910310329,1.09638127,3160.3,3160.0,3.55]
[1720910310556,1.09638127,3160.2,3160.0,3.55]
[1720910310733,1.09638127,3160.1,3160.0,3.0]
[1720910310933,1.09638127,3160.2,3159.9,1.942]
[1720910311257,2.08283869,3160.2,3159.9,1.942]
[1720910311460,1.09646068,3160.1,3159.9,1.942]
[1720910311658,1.09646068,3160.0,3159.9,1.942]
[1720910311956,1.09646068,3160.0,3159.6,3.39898598]
[1720910313831,2.08297495,3160.0,3159.6,3.39898598]
[1720910314030,1.09646068,3159.9,3159.6,3.39898598]
[1720910314627,0.98651427,3160.0,3159.6,3.39898598]
[1720910314628,1.09649487,3159.8,3159.6,3.39898598]
[1720910314881,1.09649487,3159.7,3159.6,3.39898598]
[1720910315037,1.09649487,3159.9,3159.6,4.97955658]
[1720910315536,2.0834379,3159.9,3159.6,4.97955658]
[1720910315743,1.09649487,3159.8,3159.6,4.97955658]
[1720910317183,1.09649487,3159.7,3159.6,4.97955658]
[1720910317985,1.096453,3159.7,3159.6,4.97955658]
[1720910318559,1.09645005,3159.7,3159.6,4.97955658]
[1720910319298,2.08412353,3159.7,3159.6,3.0]
[1720910319577,2.41334802,3159.7,3159.1,1.942]
[1720910319789,0.98773657,3159.4,3159.2,0.55]
[1720910320093,1.09645005,3159.3,3159.2,2.76575]
[1720910320243,1.09645005,3159.3,3159.2,3.4980066]
[1720910320956,1.09663995,3159.3,3159.2,6.4980066]
[1720910321490,1.0966398,3159.3,3159.2,6.4980066]
[1720910322372,1.0966398,3159.3,3159.2,3.55]
[1720910322571,2.08451677,3159.3,3159.2,3.0]
[1720910322766,2.08490855,3159.3,3159.2,3.0]
[1720910322979,2.08490855,3159.3,3159.1,1.942]
[1720910323147,1.0966398,3159.2,3159.1,1.942]
[1720910323346,1.0966398,3159.2,3159.1,3.5010516]
[1720910323555,0.98826875,3159.4,3159.1,9.11585758]
[1720910323876,1.09661479,3159.3,3159.2,3.0]
[1720910324598,1.09662712,3159.3,3159.2,3.0]
[1720910324748,2.08489587,3159.3,3159.2,3.0]
[1720910325958,1.09662712,3159.3,3159.2,3.0]
[1720910326387,2.74386882,3159.3,3159.1,1.942]
[1720910326554,1.09662712,3159.2,3159.1,1.942]
[1720910326760,2.41491983,3159.2,3159.1,1.942]
[1720910327838,2.41501746,3159.2,3159.1,1.942]
[1720910328329,1.31829271,3159.2,3159.1,1.942]
[1720910328540,1.09671519,3159.2,3159.1,1.942]
[1720910328707,2.41558,3159.2,3159.1,1.942]
[1720910329089,1.09671519,3159.2,3159.1,1.942]
[1720910330336,2.41581379,3159.2,3159.1,14.222]
[1720910330535,1.09671519,3159.2,3159.1,17.222]
[1720910330707,2.41569166,3159.2,3159.1,17.222]
[1720910331219,2.41568046,3159.2,3159.1,17.222]
[1720910333018,1.09670399,3159.2,3159.1,17.222]
[1720910333329,1.09670399,3159.2,3159.1,19.165795]
[1720910333501,2.08567953,3159.2,3159.1,19.165795]
[1720910333709,2.08567951,3159.2,3159.1,19.165795]
[1720910334037,1.09670399,3159.2,3159.1,19.165795]
[1720910334407,2.4149,3159.9,3159.1,26.585795]
[1720910334718,1.31856097,3159.3,3159.1,26.585795]
[1720910334921,1.09666644,3159.2,3159.1,26.585795]
[1720910335536,2.08553438,3159.2,3159.1,26.585795]
[1720910337815,2.08552056,3159.2,3159.1,26.585795]
[1720910338132,2.08552056,3159.2,3159.1,28.801615]
[1720910338831,1.09665017,3159.2,3159.1,28.801615]
[1720910339903,1.09665017,3159.2,3159.1,31.252915]
[1720910340102,1.09665017,3159.2,3159.1,18.972915]
[1720910340511,1.09665017,3159.2,3159.1,19.92190098]
[1720910340936,0.98877875,3159.4,3159.3,2.21568]
[1720910341122,2.08536418,3159.4,3159.3,4.4294381]
[1720910341432,1.31837167,3159.6,3159.3,4.4294381]
[1720910341433,1.31827145,3159.6,3159.3,4.4294381]
[1720910341617,2.08528312,3159.5,3159.3,4.4294381]
[1720910341817,2.08528312,3159.4,3159.3,4.4294381]
[1720910342033,2.08528312,3159.4,3159.3,9.6451181]
[1720910342233,1.09657953,3159.4,3159.3,10.59410408]
[1720910342410,0.98870359,3159.6,3159.5,2.21554]
[1720910342604,1.09653394,3159.6,3159.5,0.81]
[1720910342805,2.08539289,3159.6,3159.5,3.02554]
[1720910343013,2.08539289,3159.6,3159.5,6.02554]
[1720910343210,2.08539289,3159.6,3159.5,6.928094]
[1720910343621,0.98885895,3159.6,3159.5,6.928094]
[1720910344022,2.08536512,3159.6,3159.5,6.928094]
[1720910345236,1.09650617,3159.6,3159.5,10.09261998]
[1720910345439,2.08536512,3159.6,3159.5,7.87707998]
[1720910345617,2.08536512,3159.6,3159.5,10.09261998]
[1720910345844,1.31827145,3159.8,3159.5,10.09261998]
[1720910345845,0.98885895,3159.8,3159.7,4.4308]
[1720910346040,2.08523569,3159.9,3159.8,4.43066]
[1720910346243,2.41466409,3159.9,3159.8,8.79066]
[1720910346454,2.41466409,3159.9,3159.8,28.49066]
[1720910346933,2.41472858,3159.9,3159.8,26.27533]
[1720910347133,1.09645713,3159.9,3159.8,29.2498434]
[1720910347536,1.09645713,3159.9,3159.8,23.51]
[1720910348033,2.0860702,3159.9,3159.8,31.38044598]
[1720910348259,2.0860702,3159.9,3159.8,30.57044598]
[1720910348472,0.98961307,3160.0,3159.8,26.71381598]
[1720910348655,2.08597651,3159.9,3159.8,25.90381598]
[1720910348834,2.08597651,3159.9,3159.8,29.65117798]
[1720910349035,1.09636344,3159.9,3159.8,29.65117798]
[1720910349247,2.08612915,3159.9,3159.8,29.65117798]
[1720910350049,0.98976571,3159.9,3159.8,29.65117798]
[1720910350249,1.31940535,3160.0,3159.9,2.21525]
[1720910350447,2.41577371,3160.0,3159.9,8.43202872]
[1720910352038,1.09636836,3160.0,3159.9,8.43202872]
[1720910352351,1.09636836,3160.0,3159.9,6.21677872]
[1720910352975,2.7462613,3160.0,3159.9,6.21677872]
[1720910353281,2.4162459,3160.0,3159.9,8.43202872]
[1720910353452,1.09640743,3160.0,3159.9,8.43202872]
[1720910353658,1.09640393,3160.0,3159.9,8.43202872]
[1720910353854,2.3354,3160.5,3159.9,8.43202872]
[1720910354064,1.09640533,3160.0,3159.9,3.0]
[1720910354373,1.09640533,3160.0,3159.9,3.81]
[1720910355289,1.09640533,3160.1,3159.9,3.81]
[1720910355449,1.09640533,3160.1,3160.0,0.81]
[1720910355651,2.74653089,3160.1,3160.0,0.81]
[1720910355878,2.74653266,3160.1,3160.0,1.933]
[1720910356600,2.3354,3160.9,3160.0,1.933]
[1720910356748,2.74650173,3160.1,3159.9,7.6665]
[1720910356948,1.65014947,3160.1,3160.0,0.81]
[1720910357174,2.74649805,3160.1,3160.0,0.81]
[1720910357689,2.41643021,3160.1,3160.0,3.02518]
[1720910357909,1.09634858,3160.1,3160.0,3.46366598]
[1720910358193,1.09634858,3160.1,3160.0,5.31868858]
[1720910358601,2.41643021,3160.1,3160.0,5.31868858]
[1720910358750,1.09634858,3160.1,3160.0,5.31868858]
[1720910359759,2.41643021,3160.1,3160.0,5.31868858]
[1720910359964,1.32008163,3160.1,3160.0,5.31868858]
[1720910360194,2.41641753,3160.1,3160.0,5.31868858]
[1720910361077,1.0963359,3160.1,3160.0,5.31868858]
[1720910363401,1.09629804,3160.1,3160.0,5.31868858]
[1720910363689,2.41637967,3160.1,3160.0,3.46366598]
[1720910364001,1.09629804,3160.1,3160.0,3.46366598]
[1720910364887,1.09629804,3160.1,3159.9,3.0]
[1720910365085,4.47677509,3160.3,3160.0,0.81]
[1720910365256,1.09646189,3160.2,3159.7,2.21538]
[1720910365457,0.98936306,3159.8,3159.7,5.21538]
[1720910365660,0.55087708,3159.8,3159.7,6.02538]
[1720910365953,1.64733897,3159.8,3159.7,6.02538]
[1720910366373,1.64733897,3159.8,3159.7,3.81]
[1720910366584,1.31915075,3160.0,3159.7,3.81]
[1720910366585,1.31913289,3159.9,3159.7,3.81]
[1720910366755,1.09646033,3159.8,3159.6,5.21546]
[1720910366950,1.31913289,3159.9,3159.7,0.81]
[1720910367171,2.41562798,3159.8,3159.7,0.81]
[1720910369076,1.09647237,3159.8,3159.7,0.81]
[1720910369273,2.41562798,3159.8,3159.7,0.81]
[1720910369760,1.09642462,3159.8,3159.7,3.849487]
[1720910370086,1.09640581,3159.8,3159.7,6.849487]
[1720910372984,1.31915561,3160.0,3159.7,6.849487]
[1720910373160,1.0963707,3159.9,3159.8,3.0]
[1720910373363,1.0963707,3159.9,3159.8,4.9354897]
[1720910373802,1.0963707,3159.9,3159.8,7.1508197]
[1720910374290,1.0963707,3159.9,3159.8,12.1992497]
[1720910374767,0.98983658,3160.2,3160.0,2.21518]
[1720910374966,0.98983658,3160.2,3160.1,2.436628]
[1720910375206,1.31915561,3160.4,3160.2,2.21504]
[1720910375207,2.08606457,3160.3,3160.2,2.21504]
[1720910375496,1.09622799,3160.3,3160.2,8.79008]
[1720910375791,2.08615444,3160.3,3160.2,5.79008]
[1720910376000,2.08615444,3160.3,3160.2,8.79008]
[1720910376159,2.08615444,3160.3,3160.2,9.6912398]
[1720910376361,1.31915561,3160.4,3160.3,2.21497]
[1720910376683,2.41538386,3160.4,3160.3,2.76497]
[1720910377040,1.09622825,3160.4,3160.3,10.28814]
[1720910377161,2.08623753,3160.4,3160.3,10.28814]
[1720910377354,1.09622825,3160.4,3160.3,11.51022178]
[1720910378286,2.08623753,3160.4,3160.3,11.51022178]
[1720910379082,1.09622825,3160.4,3160.3,11.51022178]
[1720910379260,0.99020232,3160.6,3160.3,7.08028178]
[1720910379465,0.99020232,3160.7,3160.6,2.21476]
[1720910379672,2.2641,3161.5,3160.6,2.21476]
[1720910379673,2.2641,3161.5,3160.7,2.21463]
[1720910379878,1.32013972,3160.9,3160.7,2.21463]
[1720910380079,2.2641,3161.5,3160.8,0.81]
[1720910380405,1.31997285,3160.9,3160.8,5.21461]
[1720910380565,2.41605768,3160.9,3160.8,8.33281]
[1720910380765,1.09608483,3160.9,3160.8,9.387557]
[1720910381075,2.41605768,3160.9,3160.8,9.387557]
[1720910381400,1.09608483,3160.9,3160.8,9.387557]
[1720910381563,2.08603587,3160.9,3160.8,11.602177]
[1720910382507,0.98995104,3160.9,3160.8,11.602177]
[1720910383484,1.31997285,3161.1,3160.8,11.602177]
[1720910383485,0.98995104,3161.0,3160.9,2.21455]
[1720910383702,2.08600033,3161.0,3160.9,7.1847607]
[1720910384404,2.08577138,3161.0,3160.9,7.1847607]
[1720910385498,0.98972209,3161.0,3160.9,7.1847607]
[1720910385700,2.08576539,3161.0,3160.9,7.1847607]
[1720910386273,0.98972209,3161.0,3160.9,7.1847607]
[1720910386525,2.08576876,3161.0,3160.9,7.1847607]
[1720910386796,0.98972209,3161.0,3160.9,7.1847607]
[1720910388214,2.0857685,3161.0,3160.9,7.1847607]
[1720910388419,0.98972209,3161.0,3160.9,7.1847607]
[1720910388922,0.98972209,3161.1,3161.0,4.42896]
[1720910389073,0.98972209,3161.3,3161.2,4.42868]
[1720910389271,0.98972209,3161.5,3161.3,2.21427]
[1720910389517,0.98972209,3161.5,3161.4,3.381627]
[1720910389721,0.98972209,3161.5,3161.4,6.0242]
[1720910390402,0.98972209,3161.6,3161.5,2.21413]
[1720910390705,2.0855821,3161.6,3161.5,6.02413]
[1720910390913,0.98972209,3161.6,3161.5,6.02413]
[1720910391278,2.08558665,3161.6,3161.5,6.02413]
[1720910391509,0.98972209,3161.6,3161.5,6.02413]
[1720910392076,0.98972209,3161.7,3161.5,6.02413]
[1720910392312,0.98972209,3161.7,3161.6,3.02406]
[1720910393574,0.98972209,3161.8,3161.6,3.02406]
[1720910393888,0.98819988,3161.8,3161.7,0.81]
[1720910394292,0.98819988,3161.8,3161.7,1.412406]
[1720910394488,0.98819988,3161.9,3161.7,1.412406]
[1720910394692,0.98819988,3161.9,3161.8,0.81]
[1720910395428,0.98819988,3162.0,3161.8,0.81]
[1720910395814,0.98819988,3162.0,3161.8,3.02389]
[1720910396092,0.98819988,3162.1,3161.8,3.547685]
[1720910396290,0.98819988,3162.1,3162.0,0.81]
[1720910396527,2.08393843,3162.1,3162.0,0.81]
[1720910398018,0.98819988,3162.2,3162.0,0.81]
[1720910398238,2.08392301,3162.1,3161.8,2.737685]
[1720910398526,0.98819988,3162.2,3162.0,0.81]
[1720910398695,1.09571655,3162.1,3161.8,2.21389]
[1720910398891,0.98712847,3162.2,3162.0,0.81]
[1720910399126,1.09572279,3162.1,3162.0,0.81]
[1720910399633,1.09570869,3162.1,3162.0,0.81]
[1720910400519,0.98712847,3162.3,3162.0,0.81]
[1720910400724,1.09570463,3162.2,3161.9,3.0]
[1720910400898,1.09570463,3162.1,3161.9,0.521389]
[1720910401097,0.98712847,3162.3,3162.1,0.81]
[1720910401286,1.09570256,3162.2,3162.1,0.81]
[1720910401993,2.4455,3162.7,3162.1,0.81]
[1720910402216,0.98693891,3162.3,3161.9,3.521389]
[1720910402439,1.09569256,3162.2,3162.0,0.5735279]
[1720910402647,0.98693891,3162.4,3162.1,0.81]
[1720910402807,1.09567631,3162.3,3161.9,3.0]
[1720910403003,0.98693891,3162.4,3162.2,0.81]
[1720910403246,1.09568498,3162.3,3162.2,0.81]
[1720910405317,1.09564804,3162.3,3162.2,0.81]
[1720910405864,2.4455,3162.7,3162.2,0.81]
[1720910406028,2.08201477,3162.6,3162.1,5.2137]
[1720910406338,0.98637574,3162.6,3162.5,0.81]
[1720910406505,2.08200752,3162.6,3162.5,0.81]
[1720910407001,1.09563178,3162.6,3162.5,0.81]
[1720910407838,2.08200752,3162.6,3162.5,0.81]
[1720910408249,1.09563178,3162.6,3162.5,0.81]
[1720910408584,0.98637574,3162.8,3162.5,0.81]
[1720910408765,0.98637574,3162.8,3162.1,5.21365]
[1720910408766,1.09560925,3162.7,3162.1,5.21365]
[1720910408934,0.98637574,3162.8,3162.6,0.81]
[1720910409140,1.09558911,3162.7,3162.6,0.81]
[1720910412088,1.09553166,3162.7,3162.6,0.81]
[1720910413644,0.41411737,3164.1,3162.6,0.81]
[1720910413848,2.30152884,3164.5,3162.7,19.55602498]
[1720910414096,8.94592604,3168.1,3162.7,19.55602498]
[1720910414097,1.31639936,3166.2,3166.1,1.5]
[1720910414384,0.93738831,3168.8,3168.7,3.7091]
[1720910414583,1.31113954,3171.3,3169.4,1.5]
[1720910414800,1.7,3174.0,3171.2,2.571]
[1720910415003,1.7,3174.0,3171.3,7.70950327]
[1720910415004,1e-08,3171.5,3171.3,7.70950327]
[1720910415210,1e-08,3171.5,3171.4,2.7444991]
[1720910415498,1.7,3174.4,3171.6,2.20707]
[1720910415659,2.59622585,3172.9,3172.8,0.97511825]
[1720910415858,2.59622585,3172.9,3172.5,0.65027302]
[1720910416498,14.41620573,3173.5,3172.8,2.74422697]
[1720910416720,14.41620573,3173.5,3171.3,0.65027302]
[1720910416721,2.45500372,3173.0,3171.3,0.65027302]
[1720910416911,2.571,3172.3,3171.6,0.64759571]
[1720910417060,2.571,3172.3,3171.4,0.55]
[1720910417403,2.571,3172.3,3170.6,1.63711632]
[1720910417600,4.071,3172.3,3170.7,0.55]
[1720910417815,1.5,3172.3,3170.6,1.63711632]
[1720910417959,1.5,3172.5,3170.6,1.63711632]
[1720910417960,2.571,3171.4,3170.6,1.63711632]
[1720910418469,3.0,3171.3,3170.6,1.63711632]
[1720910418976,6.3372,3171.4,3170.6,1.63711632]
[1720910419309,6.3372,3171.4,3168.4,4.18449458]
[1720910419310,4.071,3170.9,3168.4,2.571]
[1720910419594,1.5,3171.0,3168.4,2.571]
[1720910419815,3.0,3171.3,3168.5,1.64780608]
[1720910419964,3.0,3171.3,3169.3,2.571]
[1720910420160,1.5,3171.2,3168.5,0.64623413]
[1720910420408,1.5,3171.2,3168.3,0.64623413]
[1720910420607,1.5,3171.2,3168.4,2.29394951]
[1720910420814,1.5,3170.5,3168.3,0.64623413]
[1720910420962,1.5,3170.6,3169.2,3.0]
[1720910421158,1.570804,3171.1,3169.2,3.0]
[1720910421398,0.23778669,3171.0,3169.2,3.0]
[1720910421608,1.5,3171.9,3169.8,3.0]
[1720910422188,2.2662,3172.4,3169.8,5.571]
[1720910422386,2.2662,3172.4,3169.9,0.55]
[1720910422626,2.2662,3172.4,3170.3,2.571]
[1720910422838,2.2662,3172.4,3170.4,3.8071]
[1720910423007,1.5,3171.7,3169.9,0.55]
[1720910423209,1.5,3172.1,3169.9,0.55]
[1720910424268,2.2662,3172.4,3170.1,4.7791]
[1720910424387,2.2662,3172.4,3170.2,3.55]
[1720910424587,2.2662,3172.4,3170.3,0.83291]
[1720910424801,2.2662,3172.4,3170.4,0.55]
[1720910425116,1.5,3172.2,3170.2,0.55]
[1720910425296,1.8366,3172.1,3170.0,0.55]
[1720910425496,1.8366,3172.1,3169.8,5.75832]
[1720910425728,1.8366,3172.1,3169.9,0.84657011]
[1720910425934,1.8366,3172.1,3170.0,0.55]
[1720910426138,2.2662,3172.4,3170.0,0.55]
[1720910426139,2.2662,3172.4,3170.4,1.5]
[1720910426298,5.44970945,3173.0,3170.5,0.55]
[1720910426501,0.00950372,3173.0,3171.0,1.5]
[1720910426753,0.00950372,3173.0,3171.1,0.55]
[1720910427250,0.07340735,3172.9,3171.1,0.55]
[1720910427472,0.07340735,3172.9,3171.6,1.5]
[1720910427637,0.07340735,3172.9,3171.7,2.75699]
[1720910428217,1.5,3174.5,3171.8,3.0]
[1720910428472,2.2662,3174.6,3171.3,5.20723]
[1720910428473,1.5,3174.3,3171.9,0.905]
[1720910428654,1.5,3174.3,3171.9,0.55]
[1720910429155,0.01650658,3174.2,3172.0,1.5]
[1720910429340,0.01650658,3174.2,3172.1,0.55]
[1720910429548,0.01650658,3174.2,3171.9,3.55]
[1720910429750,0.01650658,3174.2,3172.1,1.5]
[1720910429961,1.5,3174.3,3172.2,0.55]
[1720910430129,2.2662,3174.6,3172.3,2.20659]
[1720910430328,2.2662,3174.6,3172.0,3.0]
[1720910430329,3.7662,3174.6,3172.0,5.75676]
[1720910430568,1.5,3174.1,3172.0,0.55]
[1720910430785,1.5,3174.1,3170.6,2.632]
[1720910430786,1.5,3173.9,3171.0,2.20744]
[1720910430926,14.43820573,3174.2,3169.9,0.84657011]
[1720910430927,1.5,3173.5,3171.2,0.467944]
[1720910431130,1.5,3173.5,3170.3,2.472]
[1720910431330,1.5,3173.5,3171.0,1.5]
[1720910431559,3.0,3174.0,3171.0,3.7075]